Workbook

Sheet ICE (hidden)
Q1: Sim | T1: Limite | U1: 2000000 | W1: 4000000 | Y1: Tipo Limite 0- Geral 1-EBITDA | Z1: Spread | AD1: Taxa Euribor | AE1: =ROUND(_xlfn.XLOOKUP(L25,AF1:AQ1,AF14:AQ14),5) -> 0.0221 | AF1: Janeiro | AG1: Fevereiro | AH1: Março | AI1: Abril | AJ1: Maio | AK1: Junho | AL1: Julho | AM1: Agosto | AN1: Setembro | AO1: Outubro | AP1: Novembro | AQ1: Dezembro
B2: Simulador do Incentivo à Capitalização das Empresas - IRC 2025 | Q2: Não | T2: Limite EBITDA 2023 | U2: =C72*0.3 -> 0 | V2: Limite 2023 | W2: =IF(U2>$U$1,U2,$U$1) -> 2000000 | X2: Taxas | Y2: =IF(U2>=$U$1,1,0) -> 0 | AF2: 0.02519
T3: Limite EBITDA 2024 | U3: =C73*0.3 -> 0 | V3: Limite 2024 | W3: =IF(U3>$W$1,U3,$W$1) -> 4000000 | X3: =IF($L$11=$Q$1,I73+0.02,I73+0.02) -> 0.02 | Y3: =IF(U3>=$W$1,1,0) -> 0 | Z3: =IF($L$11=$Q$1,0.02,0.02) -> 0.02 | AF3: 0.02394 | AG3: 0.02394
E4: Nome: | F4: Nome da Empresa | T4: Limite EBITDA 2025 | U4: =C74*0.3 -> 0 | V4: Limite 2025 | W4: =IF(U4>$W$1,U4,$W$1) -> 4000000 | X4: =IF($L$11=$Q$1,I74+0.02,I74+0.02) -> 0.0421 | Y4: 0 | Z4: 0.02 | AF4: 0.02306 | AG4: 0.02306 | AH4: 0.02306
E5: NIF: | F5: NIF da Empresa | T5: Limite EBITDA 2026 | U5: 0 | V5: Limite 2026 | W5: =IF(U5>$W$1,U5,$W$1) -> 4000000 | X5: 0.02 | Y5: 0 | Z5: 0.02 | AF5: 0.02049 | AG5: 0.02049 | AH5: 0.02049 | AI5: 0.02049
T6: Limite EBITDA 2027 | U6: 0 | V6: Limite 2027 | W6: 4000000 | X6: 0.02 | Y6: 0 | Z6: 0.02 | AF6: 0.0209 | AG6: 0.0209 | AH6: 0.0209 | AI6: 0.0209 | AJ6: 0.0209
B7: Dados para simulação | T7: Limite EBITDA 2028 | U7: 0 | V7: Limite 2028 | W7: 4000000 | X7: 0.02 | Y7: 0 | Z7: 0.02 | AF7: 0.02072 | AG7: 0.02072 | AH7: 0.02072 | AI7: 0.02072 | AJ7: 0.02072 | AK7: 0.02072
T8: Limite EBITDA 2029 | U8: 0 | V8: Limite 2029 | W8: 4000000 | X8: 0.02 | Y8: 0 | Z8: 0.02 | AF8: 0.02126 | AG8: 0.02126 | AH8: 0.02126 | AI8: 0.02126 | AJ8: 0.02126 | AK8: 0.02126 | AL8: 0.02126
B9: É uma sociedade comercial ou civil sob forma comercial, cooperativa, empresa pública, ou pessoa coletiva de direito público ou privado com sede ou direção efetiva em território português? | L9: Não | AF9: 0.02119 | AG9: 0.02119 | AH9: 0.02119 | AI9: 0.02119 | AJ9: 0.02119 | AK9: 0.02119 | AL9: 0.02119 | AM9: 0.02119
AF10: 0.02193 | AG10: 0.02193 | AH10: 0.02193 | AI10: 0.02193 | AJ10: 0.02193 | AK10: 0.02193 | AL10: 0.02193 | AM10: 0.02193 | AN10: 0.02193
B11: A empresa classifica-se como micro, pequena ou média empresa ou empresa de pequena-média capitalização (Small Mid Cap)? | L11: Sim | AF11: 0.02196 | AG11: 0.02196 | AH11: 0.02196 | AI11: 0.02196 | AJ11: 0.02196 | AK11: 0.02196 | AL11: 0.02196 | AM11: 0.02196 | AN11: 0.02196 | AO11: 0.02196
AF12: 0.02209 | AG12: 0.02209 | AH12: 0.02209 | AI12: 0.02209 | AJ12: 0.02209 | AK12: 0.02209 | AL12: 0.02209 | AM12: 0.02209 | AN12: 0.02209 | AO12: 0.02209 | AP12: 0.02209
B13: O sujeito passivo, no exercício em causa, exerce, a título principal, uma atividade de natureza comercial, industrial ou agrícola? | L13: Não | AF13: 0.02243 | AG13: 0.02243 | AH13: 0.02243 | AI13: 0.02243 | AJ13: 0.02243 | AK13: 0.02243 | AL13: 0.02243 | AM13: 0.02243 | AN13: 0.02243 | AO13: 0.02243 | AP13: 0.02243 | AQ13: 0.02243
AF14: =+SUM(AF2:AF13)/12 -> 0.02209666667 | AG14: =+SUM(AG3:AG13)/11 -> 0.02181545455 | AH14: =+SUM(AH4:AH13)/10 -> 0.021603 | AI14: =+SUM(AI5:AI13)/9 -> 0.02144111111 | AJ14: =+SUM(AJ6:AJ13)/8 -> 0.02156 | AK14: =+SUM(AK7:AK13)/7 -> 0.02165428571 | AL14: =+SUM(AL8:AL13)/6 -> 0.02181 | AM14: =+SUM(AM9:AM13)/5 -> 0.02192 | AN14: =+SUM(AN10:AN13)/4 -> 0.0221025 | AO14: =+SUM(AO11:AO13)/3 -> 0.02216 | AP14: =+SUM(AP12:AP13)/2 -> 0.02226 | AQ14: =+AQ13 -> 0.02243 | AR14: São estas as taxas a constar na célula I69 do nosso simulador
B15: A entidade está sujeita à supervisão do Banco de Portugal ou da Autoridade de Supervisão de Seguros e Fundos de Pensões, ou de sucursais em Portugal de instituições de crédito, ou de outras instituições financeiras ou de empresas de seguros? | L15: Sim | AF15: 0.02 | AG15: 0.02 | AH15: 0.02 | AI15: 0.02 | AJ15: 0.02 | AK15: 0.02 | AL15: 0.02 | AM15: 0.02 | AN15: 0.02 | AO15: 0.02 | AP15: 0.02 | AQ15: 0.02
AF16: =+AF14+AF15 -> 0.04209666667 | AG16: =+AG14+AG15 -> 0.04181545455 | AH16: =+AH14+AH15 -> 0.041603 | AI16: 0.04144111111 | AJ16: 0.04156 | AK16: 0.04165428571 | AL16: 0.04181 | AM16: 0.04192 | AN16: 0.0421025 | AO16: 0.04216 | AP16: 0.04226 | AQ16: 0.04243
B17: Dispõe de contabilidade regularmente organizada, de acordo com a normalização contabilística e outras disposições legais em vigor para o respetivo setor de atividade? | L17: Sim
B19: O seu lucro tributável é determinado por métodos indiretos? | L19: Sim
B21: Tem a situação fiscal e contributiva regularizada? | L21: Sim
B23: O período de tributação 2025 corresponde ao período de início de atividade? | L23: Sim
B25: Indique o mês de início de atividade em 2025: | L25: Janeiro
B29: Aumentos de capitais próprios elegíveis | F29: 2023 | G29: 2024 | H29: 2025 | I29: 2026 | J29: 2027 | K29: 2028 | L29: 2029
B31: As entradas realizadas em dinheiro no âmbito da constituição de sociedades ou do aumento do capital social da sociedade beneficiária. | F31: 0 | G31: 0 | H31: 0 | I31: 0 | J31: 0 | K31: 0 | L31: 0
B33: As entradas em espécie realizadas no âmbito de aumento do capital social que correspondam à conversão de créditos em capital. | F33: 0 | G33: 0 | H33: 0 | I33: 0 | J33: 0 | K33: 0 | L33: 0
B35: Os prémios de emissão de participações sociais. | F35: 0 | G35: 0 | H35: 0 | I35: 0 | J35: 0 | K35: 0 | L35: 0
B37: A aplicação dos lucros contabilísticos passíveis de distribuição, de acordo com a legislação comercial, em resultados transitados ou, diretamente, em reservas ou no aumento do capital. | F37: 0 | G37: 0 | H37: 0 | I37: 0 | J37: 0 | K37: 0 | L37: 0
B39: Saídas dos capitais próprios elegíveis
B43: Em dinheiro ou em espécie a favor dos titulares do capital:
B45: A título de redução do mesmo ou de partilha do património. | F45: 0 | G45: 0 | H45: 0 | I45: 0 | J45: 0 | K45: 0 | L45: 0
B47: Distribuições de reservas ou resultados transitados. | F47: 0 | G47: 0 | H47: 0 | I47: 0 | J47: 0 | K47: 0 | L47: 0
B69: Resultado da simulação
B71: Ano | C71: EBITDA Fiscal | D71: Aumento CP Elegível | E71: Saídas CP Elegível | F71: Aumento líquido do CP Elegível | G71: Somatório dos aumentos dos CP Elegiveis | H71: Spread | I71: Taxa Euribor a 12 meses | J71: Benefício fiscal potencial (sem majoração) | K71: Benefício fiscal potencial (com majoração) | L71: Dedução do período | M71: Valor dedutível nos 5 períodos de tributação posteriores.
B72: =F29 -> 2023 | C72: 0 | D72: =SUM(F31,F33,F35,F37) -> 0 | E72: =SUM(F45,F47) -> 0 | F72: =D72-E72 -> 0 | G72: =F72 -> 0
B73: =G29 -> 2024 | C73: 0 | D73: =SUM(G31,G33,G35,G37) -> 0 | E73: =SUM(G45,G47) -> 0 | F73: =D73-E73 -> 0 | G73: =F73+G72 -> 0
B74: =H29 -> 2025 | C74: 0 | D74: =SUM(H31,H33,H35,H37) -> 0 | E74: =SUM(H45,H47) -> 0 | F74: =D74-E74 -> 0 | G74: =F74+G73 -> 0 | H74: =Z4 -> 0.02 | I74: 0.0221 | J74: =IF((G74*X4)<0,0,(G74*X4)) -> 0 | K74: =J74*1.5 -> 0 | L74: =IF((K74+M73)<0,0,IF((K74+M73)>W4,W4,(K74+M73))) -> 0 | M74: =IF(AND(Y4=1,(K74+M73)>W4),(K74+M73)-W4,IF(K74>L74,M73,(K74+M73-L74))) -> 0
B75: =I29 -> 2026 | C75: 0 | D75: =SUM(I31,I33,I35,I37) -> 0 | E75: =SUM(I45,I47) -> 0 | F75: =D75-E75 -> 0 | G75: =F75+G74 -> 0 | H75: 0.02 | I75: 0 | J75: =IF((G75*X5)<0,0,(G75*X5)) -> 0 | K75: =J75*1.2 -> 0 | L75: 0 | M75: 0
B76: =J29 -> 2027 | C76: 0 | D76: =SUM(J31,J33,J35,J37) -> 0 | E76: =SUM(J45,J47) -> 0 | F76: 0 | G76: 0 | H76: 0.02 | I76: 0 | J76: 0 | K76: =J76 -> 0 | L76: 0 | M76: 0
B77: =K29 -> 2028 | C77: 0 | D77: =SUM(K31,K33,K35,K37) -> 0 | E77: =SUM(K45,K47) -> 0 | F77: 0 | G77: 0 | H77: 0.02 | I77: 0 | J77: 0 | K77: =J77 -> 0 | L77: 0 | M77: 0
B78: =L29 -> 2029 | C78: 0 | D78: =SUM(L31,L33,L35,L37) -> 0 | E78: =SUM(L45,L47) -> 0 | F78: 0 | G78: 0 | H78: 0.02 | I78: 0 | J78: 0 | K78: =J78 -> 0 | L78: 0 | M78: 0
I79: Total | J79: =SUM(J72:J73) -> 0 | K79: =SUM(K72:K73) -> 0 | L79: =SUM(L72:L73) -> 0
B82: Não cumpre com as condições de acesso ao incentivo à capitalização das empresas
G83: 0
B84: =B83+31 -> 1900-01-31 | G84: 0
B97: Data de simulação | I97: =TODAY() -> 2026-01-09
B107: A Ordem não se responsabiliza por valores incorretos apurados, resultantes de erros na introdução de dados ou na interpretação das normas aplicáveis.

Sheet Alerta
B2: Simulador
B6: Para utilizar o simulador deverá ativar as macros.
B14: Ficheiro compatível apenas com versões posteriores a Microsoft Office Excel 2007 e em formato Livro com Permissão para Macros do Excel (*.xlsm)
